fUST/lending_fUST_20250424
["ID","MTS","AMOUNT","RATE_DAILY","PERIOD"]
[358828672,1745482041877,-500.0,0.00019178,2]
[358828673,1745482041897,-500.0,0.00019178,2]
[358828674,1745482041916,-500.0,0.00019178,2]
[358828675,1745482041940,-500.0,0.00019178,2]
[358828676,1745482041960,-500.0,0.00019178,2]
[358828677,1745482041980,-889.77,0.00019178,2]
[358828678,1745482042000,-500.0,0.00019178,2]
[358828679,1745482042021,-505.35838646,0.00019178,2]
[358828680,1745482042040,-500.0,0.00019178,2]
[358828681,1745482042062,-500.0,0.00019178,2]
[358828682,1745482042083,-517.26216003,0.00019178,2]
[358828683,1745482042104,-500.0,0.00019178,2]
[358828684,1745482042124,-500.0,0.00019178,2]
[358828685,1745482042144,-471.14526166,0.00019178,2]
[358828686,1745482042164,-888.49876399,0.00019178,2]
[358828732,1745482232499,-243.0,0.00019076,2]
[358828734,1745482232509,-182.66555513,0.00019076,2]
[358828736,1745482232519,-500.0,0.00019076,2]
[358828738,1745482232529,-500.0,0.00019076,2]
[358828739,1745482232539,-300.0,0.00019077,2]
[358828741,1745482232548,-300.0,0.00019077,2]
[358828743,1745482232558,-387.42622162,0.00019078,2]
[358828745,1745482232567,-1141.65025429,0.00019078,2]
[358828747,1745482232577,-250.22619672,0.00019078,2]
[358828749,1745482232586,-503.01593427,0.00019173,2]
[358828751,1745482232595,-529.90378771,0.00019173,2]
[358828753,1745482232605,-500.0,0.00019173,2]
[358828755,1745482232615,-376.82443631,0.00019173,2]
[358828757,1745482232624,-500.0,0.00019173,2]
[358828759,1745482232634,-500.0,0.00019173,2]
[358828761,1745482232644,-500.0,0.00019173,2]
[358828762,1745482232653,-500.0,0.00019173,2]
[358828764,1745482232663,-500.0,0.00019173,2]
[358828766,1745482232673,-500.0,0.00019173,2]
[358828768,1745482232683,-254.61317008,0.00019173,2]
[358828771,1745482232692,-500.0,0.00019173,2]
[358828772,1745482232702,-500.0,0.00019173,2]
[358828774,1745482232712,-504.70204473,0.00019173,2]
[358828776,1745482232721,-500.0,0.00019173,2]
[358828778,1745482232732,-500.0,0.00019173,2]
[358828780,1745482232741,-306.04730501,0.00019177,2]
[358828782,1745482232751,-646.64705225,0.00019177,2]
[358828784,1745482232761,-111.50123601,0.00019178,2]
[358828786,1745482232771,-500.0,0.00019178,2]
[358828788,1745482232780,-500.0,0.00019178,2]
[358828790,1745482232790,-500.0,0.00019178,2]
[358828792,1745482232800,-500.0,0.00019178,2]
[358828794,1745482232809,-500.0,0.00019178,2]
[358828796,1745482232818,-500.0,0.00019178,2]
[358828798,1745482232827,-500.0,0.00019178,2]
[358828800,1745482232837,-500.0,0.00019178,2]
[358828802,1745482232847,-500.0,0.00019178,2]
[358828803,1745482232857,-500.0,0.00019178,2]
[358828804,1745482232867,-500.0,0.00019178,2]
[358828805,1745482232876,-500.0,0.00019178,2]
[358828806,1745482232886,-505.60328456,0.00019178,2]
[358828807,1745482232896,-500.0,0.00019178,2]
[358828808,1745482232906,-500.0,0.00019178,2]
[358828809,1745482232915,-500.0,0.00019178,2]
[358828810,1745482232925,-500.0,0.00019178,2]
[358828811,1745482232935,-693.75,0.00019178,2]
[358828812,1745482232945,-935.02,0.00019178,2]
[358828813,1745482232955,-500.0,0.00019178,2]
[358828814,1745482232965,-500.0,0.00019178,2]
[358828815,1745482232975,-500.0,0.00019178,2]
[358828816,1745482232985,-500.0,0.00019178,2]
[358828817,1745482232994,-739.46,0.00019178,2]
[358828818,1745482233004,-500.0,0.00019178,2]
[358828819,1745482233013,-500.0,0.00019178,2]
[358828820,1745482233025,-500.0,0.00019178,2]
[358828821,1745482233036,-500.0,0.00019178,2]
[358828822,1745482233046,-500.0,0.00019178,2]
[358828823,1745482233056,-504.08222012,0.00019178,2]
[358828824,1745482233066,-500.0,0.00019178,2]
[358828825,1745482233076,-500.0,0.00019178,2]
[358828826,1745482233086,-506.40693056,0.00019178,2]
[358828827,1745482233096,-500.0,0.00019178,2]
[358828828,1745482233105,-500.0,0.00019178,2]
[358828829,1745482233116,-500.0,0.00019178,2]
[358828830,1745482233126,-504.88759479,0.00019178,2]
[358828831,1745482233136,-500.0,0.00019178,2]
[358828832,1745482233146,-500.0,0.00019178,2]
[358828833,1745482233156,-476.97734412,0.00019178,2]
[358828834,1745482233170,-210.33265588,0.00019178,2]
[358828835,1745482233180,-500.0,0.00019178,2]
[358828836,1745482233189,-500.0,0.00019178,2]
[358828837,1745482233199,-534.37397577,0.00019178,2]
[358828838,1745482233209,-383.85842922,0.00019178,2]
[358828839,1745482233218,-298.75848983,0.00019178,2]
[358828840,1745482233229,-500.0,0.00019178,2]
[358828841,1745482233239,-613.17,0.00019178,2]
[358828842,1745482233250,-500.0,0.00019178,2]
[358828843,1745482233259,-500.0,0.00019178,2]
[358828844,1745482233269,-612.87,0.00019178,2]
[358828845,1745482233278,-365.03101003,0.00019178,2]
[358828846,1745482233289,-500.0,0.00019178,2]
[358828847,1745482233298,-507.29760826,0.00019178,2]
[358828848,1745482233308,-1083.81,0.00019178,2]
[358828849,1745482233318,-506.17183024,0.00019178,2]
[358828850,1745482233327,-506.97711278,0.00019178,2]
[358828851,1745482233336,-3806.58,0.00019178,2]
[358828852,1745482233346,-500.0,0.00019178,2]
[358828853,1745482233356,-500.0,0.00019178,2]
[358828854,1745482233365,-500.0,0.00019178,2]
[358828855,1745482233375,-1429.28,0.00019178,2]
[358828856,1745482233385,-395.90436064,0.00019178,2]
[358828857,1745482233395,-500.0,0.00019178,2]
[358828858,1745482233404,-500.0,0.00019178,2]
[358828859,1745482233414,-188.85,0.00019178,2]
[358828860,1745482233424,-500.0,0.00019178,2]
[358828861,1745482233433,-515.29966395,0.00019178,2]
[358828862,1745482233442,-656.73,0.00019178,2]
[358828863,1745482233452,-500.0,0.00019178,2]
[358828864,1745482233461,-500.0,0.00019178,2]
[358828865,1745482233471,-500.0,0.00019178,2]
[358828866,1745482233481,-500.0,0.00019178,2]
[358828867,1745482233491,-500.0,0.00019178,2]
[358828868,1745482233502,-500.0,0.00019178,2]
[358828869,1745482233512,-500.0,0.00019178,2]
[358828870,1745482233522,-500.0,0.00019178,2]
[358828871,1745482233532,-907.87,0.00019178,2]
[358828872,1745482233542,-758.78,0.00019178,2]
[358828873,1745482233553,-500.0,0.00019178,2]
[358828874,1745482233562,-550.97,0.00019178,2]
[358828875,1745482233572,-1192.14,0.00019178,2]
[358828876,1745482233581,-500.0,0.00019178,2]
[358828877,1745482233591,-500.0,0.00019178,2]
[358828878,1745482233600,-500.0,0.00019178,2]
[358828879,1745482233610,-500.0,0.00019178,2]
[358828880,1745482233620,-643.07,0.00019178,2]
[358828881,1745482233630,-500.0,0.00019178,2]
[358828882,1745482233640,-500.0,0.00019178,2]
[358828883,1745482233649,-500.0,0.00019178,2]
[358828884,1745482233659,-500.13722653,0.00019178,2]
[358828885,1745482233669,-500.0,0.00019178,2]
[358828886,1745482233678,-500.0,0.00019178,2]
[358828887,1745482233688,-679.68,0.00019178,2]
[358828888,1745482233698,-516.25045071,0.00019178,2]
[358828889,1745482233707,-158.66327913,0.00019178,2]
[358828890,1745482233717,-500.0,0.00019178,2]
[358828891,1745482233731,-500.0,0.00019178,2]
[358828892,1745482233740,-500.0,0.00019178,2]
[358828893,1745482233751,-500.0,0.00019178,2]
[358828894,1745482233760,-500.0,0.00019178,2]
[358828895,1745482233770,-500.0,0.00019178,2]
[358828896,1745482233780,-1000.0,0.00019178,2]
[358828897,1745482233790,-500.0,0.00019178,2]
[358828898,1745482233800,-321.79435926,0.00019178,2]
[358828899,1745482233809,-500.0,0.00019178,2]
[358828900,1745482233820,-500.0,0.00019178,2]
[358828901,1745482233830,-247.40201852,0.00019178,2]
[358828902,1745482233841,-500.0,0.00019178,2]
[358828903,1745482233851,-953.14,0.00019178,2]
[358828904,1745482233860,-1101.43,0.00019178,2]
[358828905,1745482233870,-500.0,0.00019178,2]
[358828906,1745482233880,-614.15,0.00019178,2]
[358828907,1745482233889,-2910.47,0.00019178,2]
[358828908,1745482233899,-685.76,0.00019178,2]
[358828909,1745482233909,-515.71953775,0.00019178,2]
[358828910,1745482233918,-351.17669902,0.00019178,2]
[358828911,1745482233933,-289.10962826,0.00019178,2]
[358828912,1745482233942,-768.72,0.00019178,2]
[358828913,1745482233952,-500.0,0.00019178,2]
[358828914,1745482233961,-500.0,0.00019178,2]
[358828915,1745482233971,-500.0,0.00019178,2]
[358828916,1745482233981,-500.0,0.00019178,2]
[358828917,1745482233991,-500.0,0.00019178,2]
[358828918,1745482234001,-359.40414634,0.00019178,2]
[358828919,1745482235620,-166.35195975,0.00019076,2]
[358828920,1745482235630,-140.59585366,0.00019178,2]
[358828921,1745482235640,-182.44,0.00019178,2]
[358828922,1745482235650,-500.0,0.00019178,2]
[358828923,1745482235659,-500.0,0.00019178,2]
[358828924,1745482235669,-500.0,0.00019178,2]
[358828925,1745482235679,-744.09,0.00019178,2]
[358828926,1745482235688,-500.0,0.00019178,2]
[358828927,1745482235698,-1258.53,0.00019178,2]
[358828928,1745482235708,-500.0,0.00019178,2]
[358828929,1745482235718,-500.0,0.00019178,2]
[358828930,1745482235727,-502.6369472,0.00019178,2]
[358828931,1745482235738,-500.0,0.00019178,2]
[358828932,1745482235747,-500.0,0.00019178,2]
[358828933,1745482235757,-500.0,0.00019178,2]
[358828934,1745482235766,-500.0,0.00019178,2]
[358828935,1745482235776,-500.0,0.00019178,2]
[358828936,1745482235785,-500.0,0.00019178,2]
[358828937,1745482235796,-798.22,0.00019178,2]
[358828938,1745482235806,-604.51459139,0.00019178,2]
[358828959,1745482238413,-192.56540861,0.00019178,2]
[358828960,1745482238422,-510.8577025,0.00019178,2]
[358828962,1745482238432,-500.0,0.00019178,2]
[358828964,1745482238444,-500.0,0.00019178,2]
[358828966,1745482238456,-397.68873454,0.00019178,2]
[358828969,1745482238469,-102.31126546,0.00019178,2]
[358828971,1745482238478,-1778.63,0.00019178,2]
[358828973,1745482238488,-505.85368283,0.00019178,2]
[358828975,1745482238498,-544.72591149,0.00019178,2]
[358828977,1745482238509,-500.0,0.00019178,2]
[358828979,1745482238519,-500.0,0.00019178,2]
[358828981,1745482238529,-500.0,0.00019178,2]
[358828983,1745482238539,-500.0,0.00019178,2]
[358828986,1745482238548,-500.0,0.00019178,2]
[358828989,1745482238558,-500.0,0.00019178,2]
[358828992,1745482238567,-500.0,0.00019178,2]
[358828995,1745482238576,-500.0,0.00019178,2]
[358828997,1745482238585,-459.23329448,0.00019178,2]
[358828999,1745482238602,-210.16670552,0.00019178,2]
[358829001,1745482238611,-505.25597955,0.00019178,2]
[358829003,1745482238621,-507.21730629,0.00019178,2]
[358829005,1745482238630,-500.0,0.00019178,2]
[358829007,1745482238640,-604.48,0.00019178,2]
[358829009,1745482238649,-500.0,0.00019178,2]
[358829011,1745482238658,-500.0,0.00019178,2]
[358829013,1745482238668,-500.0,0.00019178,2]
[358829015,1745482238677,-633.84,0.00019178,2]
[358829017,1745482238687,-3226.49,0.00019178,2]
[358829019,1745482238696,-1088.63,0.00019178,2]
[358829021,1745482238705,-501.80628382,0.00019178,2]
[358829023,1745482238715,-506.5047869,0.00019178,2]
[358829025,1745482238724,-500.0,0.00019178,2]
[358829027,1745482238733,-467.73245072,0.00019178,2]
[358829029,1745482238746,-46.18035598,0.00019178,2]
[358829031,1745482238756,-518.59833427,0.00019178,2]
[358829033,1745482238765,-500.0,0.00019178,2]
[358829035,1745482238776,-505.15971468,0.00019178,2]
[358829037,1745482238791,-500.0,0.00019178,2]
[358829038,1745482238802,-500.0,0.00019178,2]
[358829040,1745482238811,-504.17264219,0.00019178,2]
[358829042,1745482238821,-500.0,0.00019178,2]
[358829044,1745482238830,-597.78,0.00019178,2]
[358829046,1745482238840,-500.0,0.00019178,2]
[358829048,1745482238849,-500.0,0.00019178,2]
[358829050,1745482238859,-500.0,0.00019178,2]
[358829051,1745482238868,-510.76663886,0.00019178,2]
[358829052,1745482238878,-500.0,0.00019178,2]
[358829053,1745482238887,-500.0,0.00019178,2]
[358829054,1745482238896,-500.0,0.00019178,2]
[358829055,1745482238905,-500.0,0.00019178,2]
[358829056,1745482238915,-682.09,0.00019178,2]
[358829057,1745482239063,-502.29740143,0.00019178,2]
[358829058,1745482239073,-500.0,0.00019178,2]
[358829059,1745482239083,-500.0,0.00019178,2]
[358829060,1745482239092,-500.0,0.00019178,2]
[358829061,1745482239102,-500.0,0.00019178,2]
[358829062,1745482239111,-187.97906402,0.00019178,2]
[358829063,1745482239123,-312.02093598,0.00019178,2]
[358829064,1745482239133,-99.41031201,0.00019178,2]
[358829065,1745482239145,-400.58968799,0.00019178,2]
[358829066,1745482239154,-538.85286299,0.00019178,2]
[358829067,1745482239163,-500.0,0.00019178,2]
[358829068,1745482239174,-507.36105845,0.00019178,2]
[358829069,1745482239186,-836.61,0.00019178,2]
[358829070,1745482239196,-500.0,0.00019178,2]
[358829071,1745482239206,-500.38723207,0.00019178,2]
[358829072,1745482239215,-596.88768614,0.00019178,2]
[358829073,1745482239224,-581.97449259,0.00019178,2]
[358829074,1745482239236,-142.36550741,0.00019178,2]
[358829075,1745482239246,-501.97390228,0.00019178,2]
[358829076,1745482239255,-501.92610732,0.00019178,2]
[358829077,1745482239265,-500.0,0.00019178,2]
[358829078,1745482239274,-500.0,0.00019178,2]
[358829079,1745482239284,-6.51738299,0.00019178,2]
[358829080,1745482239298,-493.48261701,0.00019178,2]
[358829081,1745482239308,-500.0,0.00019178,2]
[358829082,1745482239318,-911.98,0.00019178,2]
[358829083,1745482239327,-500.0,0.00019178,2]
[358829084,1745482239338,-1032.11,0.00019178,2]
[358829085,1745482239348,-596.13,0.00019178,2]
[358829086,1745482239357,-500.0,0.00019178,2]
[358829087,1745482239367,-500.0,0.00019178,2]
[358829088,1745482239376,-2598.61,0.00019178,2]
[358829089,1745482239385,-500.0,0.00019178,2]
[358829090,1745482239396,-500.0,0.00019178,2]
[358829091,1745482239406,-500.0,0.00019178,2]
[358829092,1745482239415,-500.0,0.00019178,2]
[358829093,1745482239425,-6445.39,0.00019178,2]
[358829094,1745482239434,-500.0,0.00019178,2]
[358829095,1745482239444,-500.0,0.00019178,2]
[358829096,1745482239453,-500.0,0.00019178,2]
[358829097,1745482239462,-500.0,0.00019178,2]
[358829098,1745482239472,-500.0,0.00019178,2]
[358829099,1745482239482,-500.0,0.00019178,2]
[358829100,1745482239491,-500.0,0.00019178,2]
[358829101,1745482239501,-506.94,0.00019178,2]
[358829102,1745482239510,-500.0,0.00019178,2]
[358829103,1745482239520,-580.31,0.00019178,2]
[358829104,1745482239529,-500.0,0.00019178,2]
[358829105,1745482239538,-500.0,0.00019178,2]
[358829106,1745482239548,-500.0,0.00019178,2]
[358829107,1745482239557,-5788.6,0.00019178,2]
[358829108,1745482239566,-500.0,0.00019178,2]
[358829109,1745482239575,-500.0,0.00019178,2]
[358829110,1745482239584,-500.0,0.00019178,2]
[358829111,1745482239595,-531.94,0.00019178,2]
[358829112,1745482239604,-500.0,0.00019178,2]
[358829113,1745482239613,-500.0,0.00019178,2]
[358829114,1745482239623,-542.96,0.00019178,2]
[358829115,1745482239632,-500.0,0.00019178,2]
[358829116,1745482239641,-554.88,0.00019178,2]
[358829117,1745482239651,-500.0,0.00019178,2]
[358829118,1745482239662,-500.0,0.00019178,2]
[358829119,1745482239672,-500.0,0.00019178,2]
[358829120,1745482239681,-500.0,0.00019178,2]
[358829121,1745482239690,-500.0,0.00019178,2]
[358829122,1745482239700,-500.0,0.00019178,2]
[358829123,1745482239709,-500.0,0.00019178,2]
[358829124,1745482239719,-500.0,0.00019178,2]
[358829125,1745482239729,-500.0,0.00019178,2]
[358829126,1745482239740,-500.0,0.00019178,2]
[358829127,1745482239750,-500.0,0.00019178,2]
[358829128,1745482239759,-500.0,0.00019178,2]
[358829129,1745482239769,-500.0,0.00019178,2]
[358829130,1745482239778,-500.0,0.00019178,2]
[358829131,1745482239788,-500.0,0.00019178,2]
[358829133,1745482239798,-1288.73,0.00019178,2]
[358829134,1745482239807,-500.0,0.00019178,2]
[358829135,1745482239818,-503.37159524,0.00019178,2]
[358829136,1745482239827,-500.0,0.00019178,2]
[358829137,1745482239836,-1071.38,0.00019178,2]
[358829138,1745482239846,-975.22,0.00019178,2]
[358829139,1745482239855,-502.84535847,0.00019178,2]
[358829140,1745482239864,-1322.6,0.00019178,2]
[358829141,1745482239874,-500.0,0.00019178,2]
[358829142,1745482239884,-500.0,0.00019178,2]
[358829143,1745482239893,-518.22253615,0.00019178,2]
[358829144,1745482239903,-500.0,0.00019178,2]
[358829145,1745482239912,-515.90749648,0.00019178,2]
[358829146,1745482239922,-2405.22,0.00019178,2]
[358829148,1745482239931,-1547.12,0.00019178,2]
[358829150,1745482239941,-432.49311301,0.00019178,2]
[358829151,1745482239951,-504.2,0.00019178,2]
[358829152,1745482239961,-1137.41,0.00019178,2]
[358829153,1745482239970,-500.0,0.00019178,2]
[358829154,1745482239980,-500.0,0.00019178,2]
[358829155,1745482239990,-500.0,0.00019178,2]
[358829156,1745482240000,-577.45,0.00019178,2]
[358829157,1745482240010,-602.28,0.00019178,2]
[358829158,1745482240020,-608.11,0.00019178,2]
[358829159,1745482240030,-500.0,0.00019178,2]
[358829160,1745482240040,-1069.04,0.00019178,2]
[358829161,1745482240053,-500.0,0.00019178,2]
[358829162,1745482240062,-641.74,0.00019178,2]
[358829163,1745482240072,-500.0,0.00019178,2]
[358829164,1745482240081,-500.0,0.00019178,2]
[358829165,1745482240091,-4214.18,0.00019178,2]
[358829166,1745482240100,-500.0,0.00019178,2]
[358829167,1745482240110,-501.73816248,0.00019178,2]
[358829168,1745482240121,-2139.24,0.00019178,2]
[358829169,1745482240130,-507.08012579,0.00019178,2]
[358829170,1745482240140,-502.04587694,0.00019178,2]
[358829171,1745482240150,-500.0,0.00019178,2]
[358829172,1745482240159,-383.1626213,0.00019178,2]
[358829174,1745482240169,-500.0,0.00019178,2]
[358829175,1745482240178,-500.0,0.00019178,2]
[358829176,1745482240187,-500.0,0.00019178,2]
[358829177,1745482240196,-500.0,0.00019178,2]
[358829178,1745482240205,-652.66,0.00019178,2]
[358829179,1745482240214,-500.0,0.00019178,2]
[358829180,1745482240224,-1258.31,0.00019178,2]
[358829181,1745482240233,-1258.31,0.00019178,2]
[358829182,1745482240241,-727.63,0.00019178,2]
[358829183,1745482240251,-1258.31,0.00019178,2]
[358829184,1745482240260,-1258.31,0.00019178,2]
[358829185,1745482240270,-1258.31,0.00019178,2]
[358829186,1745482240279,-1258.31,0.00019178,2]
[358829187,1745482240290,-1258.31,0.00019178,2]
[358829188,1745482240300,-1258.31,0.00019178,2]
[358829189,1745482240311,-1258.31,0.00019178,2]
[358829190,1745482240320,-1258.31,0.00019178,2]
[358829191,1745482240330,-1258.31,0.00019178,2]
[358829193,1745482240339,-1258.31,0.00019178,2]
[358829195,1745482240349,-1258.31,0.00019178,2]
[358829197,1745482240359,-1086.75,0.00019178,2]
[358829199,1745482240368,-4974.71,0.00019178,2]
[358829200,1745482240378,-1258.31,0.00019178,2]
[358829201,1745482240388,-1258.31,0.00019178,2]
[358829203,1745482240397,-1258.31,0.00019178,2]
[358829204,1745482240407,-1258.31,0.00019178,2]
[358829205,1745482240416,-1258.31,0.00019178,2]
[358829206,1745482240425,-1258.31,0.00019178,2]
[358829207,1745482240435,-1258.31,0.00019178,2]
[358829208,1745482240444,-1258.31,0.00019178,2]
[358829209,1745482240455,-1258.31,0.00019178,2]
[358829210,1745482240464,-1258.31,0.00019178,2]
[358829211,1745482240473,-1258.38979662,0.00019178,2]
[358829212,1745482240483,-500.0,0.00019178,2]
[358829213,1745482240494,-500.0,0.00019178,2]
[358829214,1745482240504,-402.26189596,0.00019178,2]
[358829215,1745482240513,-500.0,0.00019178,2]
[358829216,1745482240523,-1316.19,0.00019178,2]
[358829217,1745482240532,-500.0,0.00019178,2]
[358829218,1745482240541,-511.82844527,0.00019178,2]
[358829219,1745482240551,-280.27331324,0.00019178,2]
[358829220,1745482240561,-500.0,0.00019178,2]
[358829221,1745482240570,-3476.68,0.00019178,2]
[358829223,1745482240580,-500.0,0.00019178,2]
[358829224,1745482240589,-500.0,0.00019178,2]
[358829225,1745482240599,-500.0,0.00019178,2]
[358829226,1745482240608,-762.4,0.00019178,2]
[358829227,1745482240618,-500.0,0.00019178,2]
[358829228,1745482240628,-500.0,0.00019178,2]
[358829229,1745482240638,-500.0,0.00019178,2]
[358829230,1745482240647,-500.0,0.00019178,2]
[358829231,1745482240657,-523.73468278,0.00019178,2]
[358829232,1745482240667,-500.0,0.00019178,2]
[358829233,1745482240676,-500.0,0.00019178,2]
[358829234,1745482240686,-500.0,0.00019178,2]
[358829235,1745482240695,-500.0,0.00019178,2]
[358829236,1745482240705,-281.68515943,0.00019178,2]
[358829237,1745482240715,-188.0538308,0.00019178,2]
[358829238,1745482240724,-500.0,0.00019178,2]
[358829239,1745482240734,-500.0,0.00019178,2]
[358829240,1745482240744,-500.0,0.00019178,2]
[358829241,1745482240754,-500.0,0.00019178,2]
[358829242,1745482240763,-1980.63,0.00019178,2]
[358829243,1745482240773,-500.0,0.00019178,2]
[358829244,1745482240782,-500.0,0.00019178,2]
[358829245,1745482240791,-500.0,0.00019178,2]
[358829246,1745482240801,-500.0,0.00019178,2]
[358829247,1745482240811,-500.0,0.00019178,2]
[358829248,1745482240820,-153.02827642,0.00019178,2]
[358829249,1745482240830,-1345.37,0.00019178,2]
[358829250,1745482240839,-840.18,0.00019178,2]
[358829251,1745482240849,-448.48399133,0.00019178,2]
[358829252,1745482240858,-500.0,0.00019178,2]
[358829253,1745482240868,-500.0,0.00019178,2]
[358829254,1745482240877,-500.0,0.00019178,2]
[358829255,1745482240887,-574.38,0.00019178,2]
[358829256,1745482240896,-500.868303,0.00019178,2]
[358829257,1745482240907,-505.56,0.00019178,2]
[358829258,1745482240916,-500.0,0.00019178,2]
[358829259,1745482240926,-500.0,0.00019178,2]
[358829260,1745482240935,-500.0,0.00019178,2]
[358829261,1745482240945,-327.59220165,0.00019178,2]
[358829262,1745482240954,-995.16,0.00019178,2]
[358829263,1745482240964,-500.0,0.00019178,2]
[358829265,1745482240973,-500.0,0.00019178,2]
[358829266,1745482240983,-500.0,0.00019178,2]
[358829267,1745482240993,-500.0,0.00019178,2]
[358829268,1745482241002,-500.0,0.00019178,2]
[358829269,1745482241012,-500.0,0.00019178,2]
[358829270,1745482241022,-510.81369818,0.00019178,2]
[358829271,1745482241031,-500.0,0.00019178,2]
[358829272,1745482241041,-500.0,0.00019178,2]
[358829273,1745482241052,-2708.15,0.00019178,2]
[358829274,1745482241061,-500.0,0.00019178,2]
[358829275,1745482241071,-500.0,0.00019178,2]
[358829276,1745482241081,-500.0,0.00019178,2]
[358829277,1745482241090,-3940.84,0.00019178,2]
[358829278,1745482241101,-500.0,0.00019178,2]
[358829279,1745482241110,-500.0,0.00019178,2]
[358829280,1745482241119,-500.0,0.00019178,2]
[358829281,1745482241128,-500.0,0.00019178,2]
[358829282,1745482241137,-500.0,0.00019178,2]
[358829283,1745482241147,-173.58547447,0.00019178,2]
[358829284,1745482241156,-661.57,0.00019178,2]
[358829285,1745482241166,-292.88290146,0.00019178,2]
[358829286,1745482241175,-500.0,0.00019178,2]
[358829287,1745482241185,-622.91853306,0.00019178,2]
[358829288,1745482241194,-667.47,0.00019178,2]
[358829289,1745482241203,-500.0,0.00019178,2]
[358829290,1745482241212,-501.94479741,0.00019178,2]
[358829291,1745482241222,-500.0,0.00019178,2]
[358829292,1745482241231,-887.5,0.00019178,2]
[358829293,1745482241241,-500.0,0.00019178,2]
[358829294,1745482241250,-500.0,0.00019178,2]
[358829295,1745482241259,-501.2090953,0.00019178,2]
[358829296,1745482241268,-500.0,0.00019178,2]
[358829297,1745482241277,-502.79994789,0.00019178,2]
[358829298,1745482241287,-500.0,0.00019178,2]
[358829299,1745482241296,-4960.99,0.00019178,2]
[358829300,1745482241305,-2131.96,0.00019178,2]
[358829301,1745482241315,-500.0,0.00019178,2]
[358829302,1745482241324,-530.23,0.00019178,2]
[358829303,1745482241334,-500.0,0.00019178,2]
[358829304,1745482241343,-500.0,0.00019178,2]
[358829305,1745482241352,-500.0,0.00019178,2]
[358829306,1745482241477,-500.0,0.00019178,2]
[358829307,1745482241487,-500.0,0.00019178,2]
[358829308,1745482241497,-511.24805889,0.00019178,2]
[358829309,1745482241506,-500.0,0.00019178,2]
[358829310,1745482241516,-500.0,0.00019178,2]
[358829311,1745482241525,-500.0,0.00019178,2]
[358829312,1745482241534,-500.0,0.00019178,2]
[358829313,1745482241544,-6161.15,0.00019178,2]
[358829314,1745482241554,-1903.93,0.00019178,2]
[358829315,1745482241567,-500.0,0.00019178,2]
[358829316,1745482241577,-712.69,0.00019178,2]
[358829317,1745482241586,-500.0,0.00019178,2]
[358829318,1745482241595,-2961.35282287,0.00019178,2]
[358829319,1745482241811,-1549.61717713,0.00019178,2]
[358829320,1745482241821,-372.67114753,0.00019178,2]
[358829321,1745482241832,-500.0,0.00019178,2]
[358829322,1745482241842,-9.52632306,0.00019178,2]
[358829323,1745482241853,-490.47367694,0.00019178,2]
[358829324,1745482241864,-690.94,0.00019178,2]
[358829325,1745482241873,-3073.99,0.00019178,2]
[358829326,1745482241883,-500.0,0.00019178,2]
[358829327,1745482241892,-500.0,0.00019178,2]
[358829328,1745482241901,-355.56288096,0.00019178,2]